bitfinex/quotes_ETHUSD_20250131
["timestamp","ask_amount","ask_price","bid_price","bid_amount"]
[1738311180811,0.05304055,3245.7,3245.3,3.0813]
[1738311181317,3.08102,3245.7,3245.1,3.08153]
[1738311181616,0.05304055,3245.6,3245.1,6.16302]
[1738311181965,0.05304055,3245.6,3245.1,3.08149]
[1738311182484,0.05304055,3245.6,3245.1,6.163]
[1738311182813,0.05304055,3245.6,3245.2,3.08145]
[1738311183178,0.7871,3245.8,3245.2,3.08145]
[1738311183363,0.05304055,3245.7,3245.4,3.08121]
[1738311183567,0.7871,3245.8,3245.4,3.08121]
[1738311183793,0.05304055,3245.7,3245.4,3.08121]
[1738311184120,3.07948,3247.3,3246.3,3.08034]
[1738311184325,3.07948,3247.3,3246.5,3.08023]
[1738311184326,0.7526,3247.0,3246.5,3.08023]
[1738311184468,0.7526,3247.0,3246.5,3.08015]
[1738311187383,0.7742,3247.4,3246.4,2.89747035]
[1738311187587,0.7742,3247.4,3246.8,3.07993]
[1738311187790,3.8536,3247.4,3246.8,3.07993]
[1738311188716,3.07948,3247.3,3246.8,3.07993]
[1738311188927,3.07948,3247.3,3246.6,3.08014]
[1738311189100,3.11797643,3247.3,3246.6,3.08014]
[1738311189302,0.03849643,3247.3,3246.6,3.08014]
[1738311189476,3.07985,3247.0,3246.5,3.08023]
[1738311189872,3.906,3247.2,3246.5,3.08023]
[1738311190102,0.05139765,3246.9,3246.5,3.08023]
[1738311190286,3.906,3247.2,3246.5,3.08023]
[1738311190619,3.906,3247.2,3246.6,3.08008]
[1738311190772,0.05139765,3247.1,3246.6,3.08008]
[1738311190971,0.05139765,3247.1,3247.0,3.07976]
[1738311191171,0.8264,3247.6,3247.0,2.89747035]
[1738311191414,0.05134587,3247.5,3247.2,3.07949]
[1738311192128,0.05134587,3247.5,3247.0,5.97718035]
[1738311193175,0.05134587,3247.5,3247.1,3.07965]
[1738311193384,0.05134587,3247.5,3247.2,3.0795]
[1738311195831,0.05134587,3247.5,3247.3,3.07945]
[1738311196016,0.05134587,3247.5,3247.2,3.0795]
[1738311197030,0.05134587,3247.5,3247.1,3.98533503]
[1738311197449,0.05134587,3247.5,3247.2,3.07957]
[1738311197632,0.05134587,3247.5,3247.3,3.60396085]
[1738311197818,0.7764,3248.0,3247.7,3.07905]
[1738311198021,0.05158601,3247.9,3247.7,3.07905]
[1738311198263,0.7764,3248.0,3247.5,3.07923]
[1738311198467,0.7764,3248.0,3247.3,6.68342085]
[1738311198623,0.7764,3248.0,3247.6,3.07919]
[1738311200963,0.7764,3248.0,3247.7,3.07907]
[1738311201281,0.05175076,3247.9,3247.7,3.07907]
[1738311201822,0.05175076,3247.9,3247.5,3.07923]
[1738311202026,0.7764,3248.0,3247.5,3.07923]
[1738311202466,0.05175076,3247.9,3247.6,3.07918]
[1738311202624,0.7764,3248.0,3247.6,3.07918]
[1738311202826,0.05173665,3247.8,3247.6,3.07918]
[1738311203159,0.05173665,3247.7,3247.6,3.07918]
[1738311203351,0.7764,3248.0,3247.6,3.07918]
[1738311203551,0.05173665,3247.9,3247.6,3.87246926]
[1738311206261,0.7764,3248.0,3247.6,3.87246926]
[1738311206663,0.05169251,3247.9,3247.6,3.87246926]
[1738311206871,0.05169251,3247.9,3247.6,0.79328926]
[1738311207082,3.13066251,3247.9,3247.3,3.52690258]
[1738311207575,3.13066251,3247.9,3247.3,2.89747035]
[1738311207736,3.13066251,3247.9,3247.2,12.00951]
[1738311207737,0.7591,3247.7,3247.2,8.93]
[1738311207932,0.7591,3247.4,3247.2,8.93]
[1738311208243,0.05261571,3247.3,3247.2,8.93]
[1738311208444,0.05261571,3247.3,3246.7,5.97748035]
[1738311208653,0.05261571,3247.3,3246.6,3.08012]
[1738311208654,0.7591,3247.1,3246.6,3.08012]
[1738311209476,0.05247918,3247.0,3246.7,3.07999]
[1738311209802,0.05247918,3247.0,3246.8,0.616004]
[1738311211100,0.7591,3247.1,3246.7,3.07999]
[1738311211458,0.05247918,3247.0,3246.7,3.07999]
[1738311212205,0.05247918,3247.0,3246.8,3.07995]
[1738311214814,0.7632,3247.3,3246.8,3.07995]
[1738311214976,0.05225188,3247.2,3246.8,3.07995]
[1738311215173,0.7632,3247.3,3246.5,6.08021]
[1738311215497,0.05225188,3247.2,3246.6,3.08013]
[1738311215697,3.13187188,3247.2,3246.6,3.08013]
[1738311215903,3.13187188,3247.2,3246.7,3.08001]
[1738311216718,3.17036754,3247.2,3246.5,7.93196165]
[1738311216913,0.7605,3247.1,3246.5,1.85175165]
[1738311217074,3.07979,3247.0,3246.5,3.08022]
[1738311217276,0.05191289,3247.0,3246.5,3.08022]
[1738311217586,0.05191289,3247.0,3246.6,3.08012]
[1738311222758,0.05191289,3247.0,3246.7,3.08004]
[1738311223261,0.05191289,3247.0,3246.9,3.07986]
[1738311223422,0.05191289,3247.0,3246.8,3.07994]
[1738311224418,0.05191289,3247.0,3246.9,3.07986]
[1738311224823,0.7645,3247.4,3246.9,3.07986]
[1738311225162,0.05182815,3247.3,3246.9,3.07986]
[1738311225657,0.05182815,3247.3,3247.0,3.07973]
[1738311226765,0.05182815,3247.3,3246.8,6.15983]
[1738311226924,0.05182815,3247.3,3246.9,3.07981]
[1738311229474,0.05182815,3247.3,3246.8,3.07989]
[1738311229787,0.7665,3247.2,3246.6,6.16019]
[1738311229986,0.7665,3247.2,3246.6,4.93982965]
[1738311230196,3.13160995,3247.1,3246.6,3.08014]
[1738311232677,3.13160995,3247.1,3246.4,3.69012611]
[1738311232678,3.13160995,3247.1,3246.4,3.69008611]
[1738311233087,0.752,3246.8,3246.2,12.01043]
[1738311233258,0.752,3246.8,3246.5,3.08021]
[1738311233463,0.0518517,3246.7,3246.5,3.08021]
[1738311233866,0.752,3246.8,3246.5,3.08021]
[1738311234945,0.752,3246.8,3246.4,3.08024]
[1738311235234,0.0518517,3246.7,3246.5,3.08016]
[1738311235432,0.752,3246.8,3246.5,3.08016]
[1738311235730,0.0518517,3246.7,3246.5,3.08016]
[1738311236135,0.752,3246.8,3246.5,3.08016]
[1738311236633,0.0518517,3246.7,3246.5,3.08016]
[1738311237342,0.0518517,3246.7,3246.2,0.61009011]
[1738311237498,0.8251,3246.6,3246.2,0.61009011]
[1738311238432,0.05165388,3246.5,3246.2,0.61009011]
[1738311239932,0.05165388,3246.5,3246.3,3.08041]
[1738311240560,0.05165388,3246.5,3246.2,0.61009011]
[1738311240748,0.05165388,3246.5,3246.2,3.69060011]
[1738311241258,0.05165388,3246.5,3246.4,3.08033]
[1738311241564,0.05165388,3246.5,3246.4,5.97780035]
[1738311242056,0.759,3246.8,3246.4,5.97780035]
[1738311242057,0.759,3246.8,3246.5,3.08021]
[1738311242418,0.759,3246.8,3246.4,5.97780035]
[1738311245864,0.759,3246.8,3246.2,4.34939716]
[1738311246237,3.0801,3246.7,3246.2,0.61009011]
[1738311246441,3.84564,3246.6,3246.2,0.61009011]
[1738311246627,0.7655,3246.6,3246.2,0.61009011]
[1738311246827,3.84565,3246.6,3246.2,0.61009011]
[1738311247031,0.03850186,3246.5,3245.5,14.90857035]
[1738311247367,0.8088,3246.1,3245.5,1.49085704]
[1738311247571,0.8088,3246.1,3245.7,3.08093]
[1738311248471,0.8088,3246.1,3245.9,3.08078]
[1738311249572,0.05120171,3246.0,3245.7,3.08093]
[1738311249990,0.8088,3246.1,3245.7,3.08093]
[1738311250378,0.8088,3246.1,3245.5,5.97858035]
[1738311250793,0.8088,3246.1,3245.5,6.63788622]
[1738311250949,0.05105567,3246.0,3245.5,6.63788622]
[1738311251349,0.7915,3245.9,3245.5,2.89747035]
[1738311252052,0.05105567,3245.8,3245.5,2.89747035]
[1738311254599,0.05105567,3245.8,3245.4,3.08121]
[1738311255719,0.05105567,3245.8,3245.6,3.08108]
[1738311256087,0.05105567,3245.8,3245.5,2.89747035]
[1738311256334,0.05105567,3245.8,3245.6,0.59786703]
[1738311260327,0.05105567,3245.8,3245.6,3.67894703]
[1738311260489,0.05105567,3245.8,3245.7,3.08099]
[1738311260689,0.8245,3246.2,3245.9,3.08077]
[1738311261119,0.05091651,3246.1,3245.9,3.08077]
[1738311261319,0.05091651,3246.1,3245.9,3.696946]
[1738311263331,0.05091651,3246.1,3246.0,3.08071]
[1738311263897,0.7768,3246.5,3246.1,3.08055]
[1738311264231,0.05101076,3246.4,3245.9,0.616176]
[1738311264434,0.05101076,3246.4,3245.7,8.93]
[1738311264435,0.8289,3246.2,3245.7,8.93]
[1738311264727,0.8289,3246.0,3245.7,8.93]
[1738311264984,3.0809,3245.8,3245.7,8.93]
[1738311265096,3.08106,3245.7,3245.2,2.89747035]
[1738311265507,0.05092123,3245.6,3244.9,5.97921035]
[1738311265696,3.85791,3245.5,3245.0,2.10846294]
[1738311266153,0.05092123,3245.4,3245.0,2.10846294]
[1738311266311,0.05092123,3245.4,3244.9,5.97921035]
[1738311266505,3.85791,3245.5,3244.9,5.97921035]
[1738311267043,0.05077515,3245.4,3244.9,6.60310087]
[1738311267210,3.85791,3245.5,3244.9,6.60310087]
[1738311267405,3.13212515,3245.4,3244.9,3.52136087]
[1738311268919,3.13212515,3245.4,3244.9,2.89747035]
[1738311269453,3.13212515,3245.4,3244.6,2.89747035]
[1738311269454,0.7533,3244.9,3244.6,2.89747035]
[1738311269650,0.05034158,3244.8,3244.6,2.89747035]
[1738311269983,0.7533,3244.9,3244.6,2.89747035]
[1738311270265,0.05034158,3244.8,3244.6,2.89747035]
[1738311270431,0.7533,3244.9,3244.6,2.89747035]
[1738311270747,0.05011061,3244.8,3244.6,2.89747035]
[1738311271153,0.7533,3244.9,3244.6,2.89747035]
[1738311271531,0.05011061,3244.8,3244.6,2.89747035]
[1738311274768,0.05011061,3244.8,3244.6,5.97951035]
[1738311276281,0.05011061,3244.8,3244.6,2.89747035]
[1738311278030,0.05011061,3244.8,3244.4,0.6168612]
[1738311278226,0.7533,3244.9,3244.4,0.6168612]
[1738311278227,3.8351,3244.9,3244.4,0.6168612]
[1738311278552,0.04807447,3244.8,3244.4,0.6168612]
[1738311280884,0.04807447,3244.8,3244.5,3.08208]
[1738311281224,0.7533,3244.9,3244.5,3.08208]
[1738311281839,0.7533,3244.9,3244.6,2.89747035]
[1738311282128,0.04807447,3244.8,3244.6,2.89747035]
[1738311284321,0.7533,3244.9,3244.6,2.89747035]
[1738311285421,3.83508,3244.9,3244.4,0.6168612]
[1738311285817,0.04807447,3244.8,3244.4,0.6168612]
[1738311286423,3.12992447,3244.8,3244.4,0.6168612]
[1738311286780,3.08196,3244.7,3244.1,3.08249]
[1738311286975,0.7917,3244.6,3244.1,3.08249]
[1738311287175,0.83975558,3244.6,3244.1,3.08249]
[1738311287529,4.96035133,3244.6,3244.1,3.08249]
[1738311287910,4.96035133,3244.6,3244.1,3.70826072]
[1738311288122,4.96035133,3244.6,3244.1,0.62577072]
[1738311288327,0.7813,3244.4,3244.1,0.62577072]
[1738311288827,3.86357,3244.4,3244.1,0.62577072]
[1738311289024,0.0479659,3244.3,3244.1,0.62577072]
[1738311291827,0.0479659,3244.3,3244.2,3.08242]
[1738311292316,0.04772512,3244.3,3244.2,3.08242]
[1738311292522,0.04772512,3244.3,3244.1,3.08243]
[1738311292694,1.0,3244.6,3244.1,3.08243]
[1738311293095,0.04772512,3244.5,3244.1,3.08243]
[1738311293312,0.7595,3244.4,3244.0,2.89747035]
[1738311293831,0.04772512,3244.3,3244.0,2.89747035]
[1738311293983,0.04772512,3244.3,3244.0,5.98007035]
[1738311294680,0.04772512,3244.3,3244.0,6.58998625]
[1738311294876,0.04772512,3244.3,3244.0,4.47464788]
[1738311295077,0.04772512,3244.3,3244.1,3.0825]
[1738311295285,0.04772512,3244.3,3244.0,4.47464788]
[1738311295584,0.04772512,3244.3,3244.0,7.55723788]
[1738311296422,0.04772512,3244.3,3244.0,4.47464788]
[1738311296627,0.04772512,3244.3,3244.1,3.0825]
[1738311297324,0.04772512,3244.3,3244.2,3.08242]
[1738311297520,1.753,3244.6,3244.2,3.08242]
[1738311297822,1.753,3244.6,3244.3,3.08231]
[1738311298307,1.753,3244.6,3244.1,7.22890779]
[1738311298501,4.83513,3244.6,3244.1,1.06397779]
[1738311298707,3.08224,3244.4,3244.0,0.6099159]
[1738311301325,3.08242,3244.2,3244.0,0.6099159]
[1738311301919,3.08224,3244.4,3244.0,0.6099159]
[1738311302124,6.16455,3244.4,3244.0,0.6099159]
[1738311302325,0.8084,3244.5,3244.1,3.08245]
[1738311302692,0.8084,3244.5,3244.1,3.74143363]
[1738311303304,0.8084,3244.5,3244.1,0.65898363]
[1738311303505,0.8084,3244.5,3244.0,6.58990625]
[1738311304434,1.0,3244.6,3244.3,2.89747035]
[1738311304634,1.0,3244.6,3244.5,3.08213]
[1738311304982,1.04780538,3244.6,3244.5,3.08213]
[1738311307027,1.0,3244.6,3244.5,3.08213]
[1738311307202,1.0,3244.6,3244.5,5.18954604]
[1738311307924,1.0,3244.6,3244.5,8.18954604]
[1738311309932,1.0,3244.6,3244.5,17.11954604]
[1738311310348,1.0,3244.6,3244.5,17.74714187]
[1738311313063,1.0,3244.6,3244.5,14.74714187]
[1738311314260,1.0,3244.6,3244.5,12.01213]
[1738311315728,1.0,3244.6,3244.5,3.08213]
[1738311315923,1.0,3244.6,3244.3,6.6031017]
[1738311316124,1.0,3244.6,3244.3,3.5208617]
[1738311316361,0.04832936,3244.5,3244.4,3.08223]
[1738311316663,0.04832936,3244.5,3244.2,12.0124]
[1738311316869,0.8165,3244.4,3244.2,8.93]
[1738311317068,0.8165,3244.4,3244.0,5.98002035]
[1738311317224,0.8165,3244.4,3244.0,3.08255]
[1738311317417,0.04832936,3244.3,3244.0,0.60347883]
[1738311317818,0.8165,3244.4,3244.0,0.60347883]
[1738311318017,0.0482255,3244.2,3244.0,0.60347883]
[1738311318271,0.8165,3244.4,3244.0,0.60347883]
[1738311318468,0.0482255,3244.1,3244.0,0.60347883]
[1738311318762,0.0482255,3244.1,3243.8,3.08279]
[1738311318966,3.89873,3244.4,3243.8,3.08279]
[1738311319171,0.0481075,3244.0,3243.9,0.60138277]
[1738311319320,0.8165,3244.4,3244.2,3.08237]
[1738311319523,0.0481075,3244.3,3244.2,3.08237]
[1738311319944,0.0481075,3244.3,3244.0,3.08254]
[1738311320222,0.0481075,3244.3,3244.0,3.08257]
[1738311321022,0.0481075,3244.3,3243.9,2.89747035]
[1738311321023,0.0481075,3244.3,3243.9,5.98016035]
[1738311321888,0.0481075,3244.3,3243.9,2.89747035]
[1738311322089,0.0481075,3244.3,3244.0,3.0826]
[1738311326091,0.0481075,3244.3,3244.0,3.08254]
[1738311326295,0.0481075,3244.3,3243.9,2.89747035]
[1738311326492,0.8218,3244.0,3243.6,5.98044035]
[1738311326897,3.12875985,3243.9,3243.2,3.08337]
[1738311327048,0.8218,3243.8,3243.2,3.08337]
[1738311327245,3.90462,3243.8,3243.2,3.08337]
[1738311327447,3.9048,3243.6,3243.0,5.98096035]
[1738311327903,0.04594621,3243.5,3243.0,5.98096035]
[1738311328108,0.04594621,3243.5,3243.0,3.08349]
[1738311328393,3.9048,3243.6,3243.0,3.69982233]
[1738311328597,3.08309,3243.5,3243.0,3.69982233]
[1738311328818,0.8202,3243.4,3243.0,0.61633233]
[1738311329029,3.94915239,3243.4,3242.7,2.89747035]
[1738311329190,3.08353,3243.1,3242.7,0.6124475]
[1738311329396,3.08353,3243.1,3242.4,5.98159035]
[1738311329397,0.8066,3243.0,3242.5,3.08403]
[1738311329702,3.93579418,3243.0,3242.5,3.11157981]
[1738311330293,0.85223418,3243.0,3242.5,3.11157981]
[1738311330635,0.85223418,3243.0,3242.5,3.72402731]
[1738311331293,0.85223418,3243.0,3242.7,3.08379]
[1738311331493,0.85223418,3243.0,3242.8,3.08371]
[1738311332096,0.85223418,3243.0,3242.7,3.08379]
[1738311332426,0.04509629,3242.9,3242.5,3.6964675]
[1738311332771,3.89023,3243.0,3242.4,2.89747035]
[1738311332898,3.472693,3242.9,3242.3,3.0842]
[1738311333230,0.80600168,3242.8,3242.3,3.0842]
[1738311333727,0.80600168,3242.8,3242.1,5.98187035]
[1738311334031,0.8212,3242.6,3242.1,3.0844]
[1738311335594,0.0443678,3242.5,3242.1,3.0844]
[1738311337328,0.0443678,3242.5,3242.3,3.08422]
[1738311337838,0.0443678,3242.5,3242.1,6.66095399]
[1738311338047,0.0443678,3242.5,3242.1,3.57655399]
[1738311338241,0.8212,3242.6,3242.2,3.08431]
[1738311338704,0.04429682,3242.5,3242.2,3.08431]
[1738311339333,0.04429682,3242.5,3242.1,2.89747035]
[1738311339630,0.04429682,3242.5,3242.1,5.98185035]
[1738311341139,0.04429682,3242.5,3242.2,3.08426]
[1738311341312,0.8212,3242.6,3242.3,3.0842]
[1738311341514,0.04432994,3242.5,3242.3,3.0842]
[1738311342360,0.04432994,3242.5,3242.2,3.08426]
[1738311342567,0.8212,3242.6,3242.4,3.08413]
[1738311342863,0.04432994,3242.5,3242.4,3.08413]
[1738311343265,0.04432994,3242.5,3242.4,6.59843935]
[1738311343569,0.759,3243.2,3243.1,3.08346]
[1738311343923,0.80339617,3243.2,3243.1,3.08346]
[1738311345491,0.04439617,3243.2,3243.1,3.08346]
[1738311345837,0.8233,3243.5,3243.4,3.08318]
[1738311346270,0.86826387,3243.5,3243.4,3.08318]
[1738311346776,0.7958,3243.9,3243.4,3.08318]
[1738311347097,0.04496387,3243.8,3243.5,3.083]
[1738311347396,0.04496387,3243.8,3243.7,3.08289]
[1738311347763,0.761,3244.5,3244.3,3.08226]
[1738311348082,1.0,3244.6,3244.5,3.08213]
[1738311348255,1.0,3244.6,3244.1,12.01248]
[1738311348452,0.03852651,3244.5,3244.1,8.93]
[1738311348764,0.8046,3244.3,3244.1,8.93]
[1738311348945,0.8046,3244.3,3244.1,14.90990035]
[1738311349290,0.04521451,3244.2,3244.1,14.90990035]
[1738311349638,1.7929,3244.6,3244.2,3.08236]
[1738311349839,1.7929,3244.6,3244.1,14.90990035]
[1738311349840,1.7929,3244.6,3244.1,11.82747035]
[1738311350040,0.04521451,3244.5,3244.4,5.97970035]
[1738311350280,0.04521451,3244.5,3244.4,3.08223]
[1738311350584,1.7929,3244.6,3244.1,14.90997035]
[1738311350794,3.08233,3244.3,3244.1,8.93]
[1738311351085,0.8064,3244.2,3244.1,8.93]
[1738311351495,0.8064,3244.2,3244.1,3.08251]
[1738311351496,0.85182726,3244.2,3244.1,3.08251]
[1738311351642,0.04542726,3244.2,3244.1,3.08251]
[1738311352184,1.7921,3244.6,3244.2,3.08232]
[1738311352394,0.0453989,3244.5,3244.2,3.08232]
[1738311352572,0.0453989,3244.5,3244.1,5.97998035]
[1738311352979,0.0453989,3244.5,3244.1,3.08251]
[1738311353304,3.12079886,3244.4,3243.5,5.98055035]
[1738311353441,3.08245,3244.2,3243.5,5.98055035]
[1738311353794,0.08393323,3244.1,3243.5,5.98055035]
[1738311353965,0.0453989,3244.1,3243.6,3.08297]
[1738311354343,0.0453989,3244.1,3243.5,2.89747035]
[1738311354593,0.0453989,3244.1,3243.6,3.08298]
[1738311355086,0.0453989,3244.1,3243.8,3.08279]
[1738311355428,0.8005,3244.3,3243.9,3.08269]
[1738311355589,0.0453989,3244.0,3243.9,3.08269]
[1738311355891,0.8005,3244.3,3243.9,3.08269]
[1738311356388,0.0453989,3244.2,3243.9,3.08269]
[1738311356591,0.8005,3244.3,3243.9,3.08269]
[1738311356795,0.0453989,3244.2,3243.9,3.08269]
[1738311357093,0.8005,3244.3,3243.9,3.08269]
[1738311357292,0.0453989,3244.1,3243.9,3.08269]
[1738311357459,0.8005,3244.3,3243.9,3.08269]
[1738311357660,0.0453989,3244.0,3243.9,3.08269]
[1738311357893,0.8005,3244.3,3243.9,3.08269]
[1738311358377,0.0453989,3244.2,3243.9,3.08269]
[1738311358685,0.8005,3244.3,3243.9,3.08269]
[1738311358887,0.0453989,3244.1,3243.9,3.08269]
[1738311359064,0.8005,3244.3,3243.9,3.08269]
[1738311359263,0.0453989,3244.0,3243.9,3.08269]
[1738311359467,0.8005,3244.3,3243.9,3.08269]
[1738311359664,0.0453989,3244.0,3243.9,3.08269]
[1738311360149,0.8005,3244.3,3243.9,3.08269]
[1738311360352,0.0453989,3244.2,3244.0,3.08258]
[1738311360564,1.0,3244.6,3243.3,3.6909611]
[1738311360565,1.7553,3244.6,3244.3,3.08231]
[1738311360794,0.0453989,3244.5,3244.3,3.08231]
[1738311361018,0.0453989,3244.5,3244.1,3.08251]
[1738311361365,0.79382689,3244.4,3243.7,8.93]
[1738311361581,3.83763,3244.3,3243.7,8.93]
[1738311361779,3.83763,3244.3,3243.7,12.01288]
[1738311362067,0.04525705,3244.2,3243.7,12.01288]
[1738311362692,0.04525705,3244.2,3243.8,3.08279]
[1738311362863,0.04525705,3244.2,3243.9,3.08268]
[1738311363078,0.7553,3244.3,3244.0,3.08259]
[1738311363629,0.04525705,3244.2,3244.1,3.08251]
[1738311363980,1.7555,3244.6,3244.3,3.08229]
[1738311364194,0.04527126,3244.5,3244.3,3.08229]
[1738311365731,0.04527126,3244.5,3244.1,3.08245]
[1738311366198,1.7555,3244.6,3244.3,3.08231]
[1738311366611,0.04532326,3244.5,3244.3,3.08231]
[1738311367690,0.04532326,3244.5,3244.4,5.97970035]
[1738311368230,1.0,3244.6,3244.5,3.08213]
[1738311368800,1.0,3244.6,3244.5,6.08213]
[1738311371320,1.0,3244.6,3244.5,3.08213]
[1738311371861,1.04555015,3244.6,3244.5,3.08213]
[1738311372649,1.04555015,3244.6,3244.1,9.06241035]
[1738311373537,1.04555015,3244.6,3244.2,3.0824]
[1738311373852,1.54201279,3244.6,3244.0,12.01253]
[1738311374057,0.8021,3244.5,3244.1,3.0825]
[1738311374269,0.84062716,3244.5,3244.0,8.93]
[1738311374478,0.84062716,3244.5,3244.0,12.01258]
[1738311374767,0.04542726,3244.4,3244.1,3.08245]
[1738311375185,0.04542726,3244.4,3244.1,6.1649]
[1738311375324,0.04542726,3244.4,3244.1,3.08245]
[1738311375525,0.04542726,3244.4,3244.2,3.08241]
[1738311380293,0.04542726,3244.4,3244.3,3.08232]
[1738311380659,1.0,3244.6,3244.3,3.08232]
[1738311381207,0.04576774,3244.5,3244.3,3.08232]
[1738311381901,0.04576774,3244.5,3244.4,5.97970035]
[1738311382262,1.0,3244.6,3244.5,3.08213]
[1738311383763,1.04593794,3244.6,3244.5,3.08213]
[1738311384102,1.04593794,3244.6,3244.5,3.69257458]
[1738311384503,1.0,3244.6,3244.5,3.69257458]
[1738311385010,1.7502,3244.6,3244.2,12.01242]
[1738311385208,0.22095794,3244.5,3244.2,8.93]
[1738311385409,0.17502,3244.5,3244.2,8.93]
[1738311385690,0.04603246,3244.4,3244.2,8.93]
[1738311386045,1.7502,3244.6,3244.2,8.93]
[1738311386246,0.04603246,3244.3,3244.2,12.01242]
[1738311386443,1.7502,3244.6,3244.2,12.01242]
[1738311386988,1.7502,3244.6,3244.2,8.93]
[1738311387176,0.7896,3244.4,3244.2,8.93]
[1738311387374,0.04603246,3244.3,3244.2,8.93]
[1738311387577,0.04603246,3244.3,3244.2,12.01242]
[1738311387750,1.0,3244.6,3244.2,12.01242]
[1738311387950,0.04603246,3244.5,3244.3,3.08229]
[1738311388255,1.0,3244.6,3244.3,3.08229]
[1738311389085,0.04603246,3244.5,3244.3,3.08229]
[1738311390208,1.0,3244.6,3244.3,3.08229]
[1738311391391,1.0,3244.6,3244.2,3.08242]
[1738311392352,0.7511,3244.5,3244.2,3.08242]
[1738311392589,0.04591613,3244.4,3244.2,3.08242]
[1738311392962,0.04591613,3244.4,3244.3,3.08232]
[1738311393390,1.0,3244.6,3244.3,3.08232]
[1738311393598,0.04591613,3244.5,3244.3,3.08232]
[1738311394093,0.04591613,3244.5,3244.4,3.08223]
[1738311394275,0.04591613,3244.5,3244.4,5.97970035]
[1738311394591,1.0,3244.6,3244.4,5.97970035]
[1738311394794,1.0,3244.6,3244.5,3.08213]
[1738311397707,0.785,3244.5,3244.2,3.08237]
[1738311398207,0.04600118,3244.4,3244.2,3.08237]
[1738311398861,0.04600118,3244.4,3244.3,3.08232]
[1738311399802,0.04600118,3244.4,3244.2,3.08237]
[1738311400401,0.04600118,3244.4,3244.3,3.08232]
[1738311401006,0.04600118,3244.4,3244.2,3.08237]
[1738311401505,0.04600118,3244.4,3244.3,3.08232]
[1738311402182,1.0,3244.6,3244.3,4.05139386]
[1738311402353,1.0,3244.6,3244.5,3.08213]
[1738311402554,1.0,3244.6,3244.3,0.96907386]
[1738311402757,1.0,3244.6,3244.1,3.52604864]
[1738311407687,1.0,3244.6,3244.4,2.89747035]
[1738311414042,1.0,3244.6,3244.5,3.0]
[1738311416136,0.789,3245.6,3244.5,3.0]
[1738311416443,0.789,3245.6,3245.3,2.89747035]
[1738311416644,0.789,3245.6,3245.3,3.18721738]
[1738311417200,0.789,3245.6,3245.3,0.28974703]
[1738311417507,0.789,3245.6,3245.0,2.89747035]
[1738311418532,0.789,3245.6,3244.7,11.82747035]
[1738311418940,0.789,3245.6,3244.7,8.93]
[1738311419447,0.8182,3245.4,3244.7,8.93]
[1738311419855,0.8182,3245.4,3244.5,3.0]
[1738311420023,0.8182,3245.4,3244.6,0.58974704]
[1738311420226,0.8182,3245.4,3244.6,1.20094189]
[1738311420947,0.7857,3245.2,3244.3,8.93]
[1738311421107,0.03852491,3245.1,3244.3,8.93]
[1738311421303,0.565,3245.6,3244.3,8.93]
[1738311421550,0.7857,3245.4,3244.3,9.55668963]
[1738311421853,0.7857,3245.2,3244.3,10.80210563]
[1738311422164,0.7857,3245.0,3244.4,2.89747035]
[1738311427466,0.03852003,3245.8,3243.8,2.89747035]
[1738311427467,0.03852365,3244.9,3243.8,2.89747035]
[1738311427619,0.8198,3245.2,3243.8,2.89747035]
[1738311427966,0.7763,3245.0,3243.9,3.0]
[1738311428168,0.7763,3244.8,3243.9,0.58974704]
[1738311428384,0.8293,3244.6,3243.8,2.89747035]
[1738311428864,0.8293,3244.6,3244.0,0.60734985]
[1738311429561,0.85852836,3244.5,3243.3,9.53519176]
[1738311429966,0.85852836,3244.5,3243.3,8.93]
[1738311430374,0.565,3244.4,3243.3,8.93]
[1738311430541,0.84843809,3244.3,3243.3,8.93]
[1738311431668,0.8154,3244.1,3242.9,2.89747035]
[1738311431872,0.55,3243.8,3242.4,0.616839]
[1738311432032,0.8154,3243.6,3242.3,2.89747035]
[1738311432370,0.85394604,3243.5,3242.2,0.6054384]
[1738311432669,0.85394604,3243.5,3242.1,2.441]
[1738311432670,0.7651,3242.7,3242.1,3.69100993]
[1738311432872,0.08327645,3242.6,3242.1,3.0844]
[1738311433369,0.08327645,3242.6,3241.7,2.89747035]
[1738311433574,0.7744,3242.4,3241.8,3.08468]
[1738311433777,0.03855551,3242.3,3241.8,3.08468]
[1738311434075,0.08282583,3242.3,3241.8,3.08468]
[1738311434271,0.04427032,3242.3,3241.7,3.0848]
[1738311434491,0.7744,3242.4,3241.8,3.08461]
[1738311434896,0.04427032,3242.3,3241.8,3.68281804]
[1738311435076,0.08282568,3242.3,3241.8,3.68281804]
[1738311435285,0.812,3242.2,3241.7,2.89747035]
[1738311435451,0.812,3242.2,3241.6,3.08487]
[1738311435649,0.03855738,3242.1,3241.7,0.02215717]
[1738311435875,3.91871032,3242.0,3241.7,0.02215717]
[1738311436094,3.8746,3241.8,3241.5,0.02658847]
[1738311436394,0.03856355,3241.7,3241.6,0.02215763]
[1738311436547,0.08215715,3241.7,3241.1,3.08535]
[1738311436753,0.03856355,3241.7,3241.2,0.02216037]
[1738311437095,0.0435936,3241.6,3241.2,0.02216037]
[1738311437545,3.08537,3241.1,3240.9,0.02659253]
[1738311437750,0.03857256,3241.0,3240.4,3.08602]
[1738311437950,0.8195,3240.9,3240.4,3.08602]
[1738311438224,0.8195,3240.9,3240.2,6.61306982]
[1738311438375,0.8195,3240.9,3240.5,3.08592]
[1738311438376,0.04300649,3240.8,3240.5,3.08592]
[1738311438561,0.8195,3240.9,3240.3,3.08705641]
[1738311438761,0.04300649,3240.7,3240.3,3.08705641]
[1738311439061,0.85807356,3240.9,3240.3,0.90801109]
[1738311439290,0.8195,3240.9,3240.4,3.08601]
[1738311439774,0.04264652,3240.8,3240.6,3.08584]
[1738311440159,0.8195,3240.9,3240.8,3.08565]
[1738311440552,0.86214652,3240.9,3240.8,3.08565]
[1738311440769,0.04264652,3240.9,3240.8,3.702799]
[1738311441102,0.7877,3241.6,3240.8,3.51461935]
[1738311441314,0.7877,3241.6,3241.3,3.08518]